fUST/lending_fUST_20240517
["ID","MTS","AMOUNT","RATE_DAILY","PERIOD"]
[327241204,1715914233690,-241.184292,0.00016438,2]
[327241205,1715914233700,-241.184292,0.00016438,2]
[327241206,1715914233711,-241.184292,0.00016438,2]
[327241207,1715914233721,-241.184292,0.00016438,2]
[327241208,1715914233732,-500.0,0.00016438,2]
[327241209,1715914233741,-241.184292,0.00016438,2]
[327241210,1715914233750,-241.184292,0.00016438,2]
[327241211,1715914233760,-241.184292,0.00016438,2]
[327241212,1715914233771,-241.184292,0.00016438,2]
[327241213,1715914233781,-241.184292,0.00016438,2]
[327241214,1715914233791,-500.0,0.00016438,2]
[327241215,1715914233801,-241.184292,0.00016438,2]
[327241216,1715914233811,-241.184292,0.00016438,2]
[327241217,1715914233819,-241.184292,0.00016438,2]
[327241218,1715914233829,-500.0,0.00016438,2]
[327241219,1715914233839,-139.57480176,0.00016438,2]
[327241263,1715914238902,-360.42519824,0.00016438,2]
[327241264,1715914238913,-500.0,0.00016438,2]
[327241265,1715914238922,-724.46,0.00016438,2]
[327241266,1715914238931,-860.93,0.00016438,2]
[327241267,1715914238940,-151.0,0.00016438,2]
[327241268,1715914238949,-151.0,0.00016438,2]
[327241269,1715914238958,-151.0,0.00016438,2]
[327241270,1715914238967,-151.0,0.00016438,2]
[327241271,1715914238976,-151.0,0.00016438,2]
[327241272,1715914238985,-151.0,0.00016438,2]
[327241273,1715914238994,-151.0,0.00016438,2]
[327241274,1715914239003,-624.3,0.00016438,2]
[327241275,1715914239011,-151.0,0.00016438,2]
[327241276,1715914239020,-500.0,0.00016438,2]
[327241277,1715914239030,-235.368799,0.00016438,2]
[327241279,1715914239039,-1503.81,0.00016438,2]
[327241280,1715914239049,-1023.7,0.00016438,2]
[327241281,1715914239058,-500.0,0.00016438,2]
[327241283,1715914239068,-500.0,0.00016438,2]
[327241284,1715914239077,-389.04633571,0.00016438,2]
[327241287,1715914241503,-110.95366429,0.00016438,2]
[327241288,1715914241512,-741.33,0.00016438,2]
[327241289,1715914241522,-670.78,0.00016438,2]
[327241290,1715914241532,-1260.04,0.00016438,2]
[327241291,1715914241541,-500.0,0.00016438,2]
[327241292,1715914241551,-500.0,0.00016438,2]
[327241293,1715914241561,-627.98,0.00016438,2]
[327241294,1715914241570,-500.0,0.00016438,2]
[327241295,1715914241580,-1145.47,0.00016438,2]
[327241296,1715914241589,-836.92,0.00016438,2]
[327241297,1715914241599,-2398.53,0.00016438,2]
[327241298,1715914241609,-500.0,0.00016438,2]
[327241299,1715914241618,-3527.31,0.00016438,2]
[327241300,1715914241627,-151.0,0.00016438,2]
[327241301,1715914241637,-151.0,0.00016438,2]
[327241302,1715914241647,-151.0,0.00016438,2]
[327241303,1715914241700,-151.0,0.00016438,2]
[327241304,1715914241710,-151.0,0.00016438,2]
[327241305,1715914241724,-151.0,0.00016438,2]
[327241306,1715914241734,-151.0,0.00016438,2]
[327241307,1715914241743,-151.0,0.00016438,2]
[327241308,1715914241753,-151.0,0.00016438,2]
[327241309,1715914241763,-151.0,0.00016438,2]
[327241310,1715914241772,-151.0,0.00016438,2]
[327241311,1715914241782,-151.0,0.00016438,2]
[327241312,1715914241792,-151.0,0.00016438,2]
[327241313,1715914241802,-274.494709,0.00016438,2]
[327241314,1715914241811,-28.95031526,0.00016438,2]
[327241336,1715914244053,-474.69246878,0.00016438,2]
[327241337,1715914244063,-340.17985122,0.00016438,2]
[327241341,1715914246655,-496.12193422,0.00016438,2]
[327241342,1715914682555,500.0,0.00016438,4]
[327241343,1715914683154,500.0,0.00016712,4]
[327241344,1715914683786,500.0,0.00016986,4]
[327241345,1715914684063,500.0,0.0001726,4]
[327241346,1715914684346,500.0,0.00017534,4]
[327241347,1715914684849,500.0,0.00017808,4]
[327241348,1715914685216,500.0,0.00018082,4]
[327241349,1715914685484,500.0,0.00018356,4]
[327241350,1715914685753,500.0,0.0001863,4]
[327241351,1715914686034,500.0,0.00018904,4]
[327241352,1715914686339,500.0,0.00019178,4]
[327241353,1715914686617,500.0,0.00019452,4]
[327241354,1715914687248,500.0,0.00019726,4]
[327241355,1715914687539,500.0,0.0002,4]
[327241356,1715915061619,223.0,0.0002,10]
[327241388,1715915433015,-791.88365063,0.000152,2]
[327241566,1715915438944,-2003.30518748,0.000152,2]
[327241568,1715915438953,-3009.61283734,0.00015201,2]
[327241580,1715915441227,-1049.94454746,0.00015201,2]
[327241581,1715915441236,-182.836371,0.000153,2]
[327241582,1715915441246,-200.0,0.00015614,2]
[327241583,1715915441258,-4221.46001999,0.00016232,2]
[327241584,1715915441268,-169.43983306,0.00016273,2]
[327241585,1715915441278,-153.0,0.000163,2]
[327241586,1715915441287,-153.0,0.000163,2]
[327241587,1715915441298,-220.88770816,0.00016338,2]
[327241588,1715915441307,-203.12033551,0.00016338,2]
[327241589,1715915441316,-153.0,0.000164,2]
[327241590,1715915441327,-157.9015963,0.000164,2]
[327241591,1715915441336,-153.0,0.000164,2]
[327241592,1715915441345,-153.0,0.000164,2]
[327241593,1715915441355,-153.0,0.000164,2]
[327241594,1715915441364,-153.0,0.000164,2]
[327241595,1715915441374,-153.0,0.000164,2]
[327241596,1715915441384,-153.0,0.000164,2]
[327241597,1715915441394,-153.0,0.000164,2]
[327241598,1715915441403,-153.0,0.000164,2]
[327241599,1715915441413,-153.0,0.000164,2]
[327241600,1715915441422,-153.0,0.000164,2]
[327241601,1715915441433,-153.0,0.000164,2]
[327241602,1715915441443,-153.0,0.000164,2]
[327241603,1715915441452,-153.0,0.000164,2]
[327241604,1715915441462,-153.0,0.000164,2]
[327241605,1715915441472,-156.1314124,0.000164,2]
[327241606,1715915441481,-153.0,0.000164,2]
[327241607,1715915441491,-153.0,0.000164,2]
[327241608,1715915441501,-153.0,0.000164,2]
[327241609,1715915441510,-203.12033551,0.00016407,2]
[327241610,1715915441520,-586.4127612,0.00016436,2]
[327241611,1715915441529,-263.17042,0.00016436,2]
[327241612,1715915441539,-187.46211037,0.00016436,2]
[327241613,1715915441550,-155.13988203,0.00016436,2]
[327241614,1715915441559,-461.19333981,0.00016437,2]
[327241615,1715915441568,-500.0,0.00016438,2]
[327241616,1715915441578,-500.0,0.00016438,2]
[327241617,1715915441589,-500.0,0.00016438,2]
[327241618,1715915441598,-500.0,0.00016438,2]
[327241619,1715915441607,-500.0,0.00016438,2]
[327241620,1715915441617,-398.26618783,0.00016438,2]
[327241665,1715915443924,5023.03,0.0002,10]
[327241887,1715915446250,1431.54122158,0.0002,4]
[327241962,1715915446955,-101.73381217,0.00016438,2]
[327241965,1715915446966,-500.0,0.00016438,2]
[327241969,1715915446976,-500.0,0.00016438,2]
[327241972,1715915446985,-540.22,0.00016438,2]
[327241975,1715915446994,-500.0,0.00016438,2]
[327241978,1715915447004,-500.0,0.00016438,2]
[327241981,1715915447014,-500.0,0.00016438,2]
[327241984,1715915447023,-500.0,0.00016438,2]
[327241987,1715915447032,-500.0,0.00016438,2]
[327241990,1715915447042,-540.31385322,0.00016438,2]
[327241993,1715915447052,-500.0,0.00016438,2]
[327241996,1715915447064,-500.0,0.00016438,2]
[327241999,1715915447073,-500.0,0.00016438,2]
[327242002,1715915447083,-500.0,0.00016438,2]
[327242004,1715915447092,-500.0,0.00016438,2]
[327242006,1715915447103,-500.0,0.00016438,2]
[327242008,1715915447114,-574.3,0.00016438,2]
[327242010,1715915447124,-642.83,0.00016438,2]
[327242012,1715915447136,-459.25549795,0.00016438,2]
[327242050,1715916042101,197.9,0.00014925,2]
[327242051,1715916110168,154.79876161,0.00014776,2]
[327242052,1715916126153,155.28253619,0.00014776,2]
[327242214,1715916638581,-345.8920468,0.00015252,2]
[327242215,1715916638591,-4221.46001999,0.00016287,2]
[327242216,1715916638600,-326.64796567,0.00016338,2]
[327242217,1715916638611,-749.89884008,0.00016338,2]
[327242218,1715916638621,-154.82968734,0.00016436,2]
[327242219,1715916638642,-945.58795248,0.00016436,2]
[327242220,1715916638654,-2807.01482779,0.00016437,2]
[327242221,1715916638664,-930.94102569,0.00016437,2]
[327242222,1715916638679,-198.76166552,0.00016438,3]
[327242223,1715916638688,-500.0,0.00016438,2]
[327242224,1715916638698,-500.0,0.00016438,2]
[327242225,1715916638708,-616.04,0.00016438,2]
[327242226,1715916638718,-500.0,0.00016438,2]
[327242227,1715916638727,-550.37,0.00016438,2]
[327242228,1715916638737,-500.0,0.00016438,2]
[327242229,1715916638746,-500.0,0.00016438,2]
[327242230,1715916638756,-500.0,0.00016438,2]
[327242231,1715916638767,-500.0,0.00016438,2]
[327242232,1715916638777,-500.0,0.00016438,2]
[327242233,1715916638786,-500.0,0.00016438,2]
[327242234,1715916638796,-500.0,0.00016438,2]
[327242235,1715916638806,-500.0,0.00016438,2]
[327242236,1715916638816,-517.71,0.00016438,2]
[327242237,1715916638826,-500.0,0.00016438,2]
[327242238,1715916638835,-500.0,0.00016438,2]
[327242239,1715916638845,-500.0,0.00016438,2]
[327242240,1715916638855,-500.0,0.00016438,2]
[327242241,1715916638865,-500.0,0.00016438,2]
[327242242,1715916638875,-500.0,0.00016438,2]
[327242243,1715916638885,-500.0,0.00016438,2]
[327242244,1715916638896,-500.0,0.00016438,2]
[327242245,1715916638906,-500.0,0.00016438,2]
[327242246,1715916638915,-646.03,0.00016438,2]
[327242247,1715916638927,-532.25,0.00016438,2]
[327242248,1715916638936,-500.0,0.00016438,2]
[327242249,1715916638946,-500.0,0.00016438,2]
[327242250,1715916638955,-535.14,0.00016438,2]
[327242251,1715916638966,-500.0,0.00016438,2]
[327242252,1715916638976,-866.44,0.00016438,2]
[327242253,1715916638987,-1165.12,0.00016438,2]
[327242254,1715916638998,-1203.43,0.00016438,2]
[327242255,1715916639008,-500.0,0.00016438,2]
[327242256,1715916639019,-500.0,0.00016438,2]
[327242257,1715916639029,-786.16,0.00016438,2]
[327242258,1715916639040,-1222.45,0.00016438,2]
[327242259,1715916639051,-562.05,0.00016438,2]
[327242260,1715916639062,-500.0,0.00016438,2]
[327242261,1715916639073,-500.0,0.00016438,2]
[327242262,1715916639083,-500.0,0.00016438,2]
[327242263,1715916639094,-500.0,0.00016438,2]
[327242264,1715916639104,-663.31,0.00016438,2]
[327242265,1715916639115,-500.0,0.00016438,2]
[327242266,1715916639125,-500.0,0.00016438,2]
[327242267,1715916639136,-500.0,0.00016438,2]
[327242268,1715916639146,-151.0,0.00016438,2]
[327242269,1715916639156,-151.0,0.00016438,2]
[327242270,1715916639167,-180.368576,0.00016438,2]
[327242271,1715916639180,-500.0,0.00016438,2]
[327242272,1715916639190,-500.0,0.00016438,2]
[327242273,1715916639201,-500.0,0.00016438,2]
[327242274,1715916639212,-1921.31,0.00016438,2]
[327242275,1715916639222,-500.0,0.00016438,2]
[327242276,1715916639234,-1503.81,0.00016438,2]
[327242277,1715916639245,-904.99,0.00016438,2]
[327242278,1715916639256,-151.0,0.00016438,2]
[327242279,1715916639267,-151.0,0.00016438,2]
[327242280,1715916639277,-151.0,0.00016438,2]
[327242281,1715916639289,-151.0,0.00016438,2]
[327242282,1715916639300,-151.0,0.00016438,2]
[327242283,1715916639311,-151.0,0.00016438,2]
[327242284,1715916639321,-151.0,0.00016438,2]
[327242285,1715916639331,-151.0,0.00016438,2]
[327242286,1715916639341,-235.368799,0.00016438,2]
[327242287,1715916639351,-739.46,0.00016438,2]
[327242288,1715916639362,-601.82,0.00016438,2]
[327242289,1715916639372,-500.0,0.00016438,2]
[327242290,1715916639383,-1066.71,0.00016438,2]
[327242291,1715916639394,-504.4766996,0.00016438,2]
[327242292,1715916639406,-504.29478043,0.00016438,2]
[327242293,1715916639416,-802.05,0.00016438,2]
[327242294,1715916639430,-500.0,0.00016438,2]
[327242295,1715916639440,-500.0,0.00016438,2]
[327242296,1715916639450,-500.0,0.00016438,2]
[327242297,1715916639460,-500.0,0.00016438,2]
[327242298,1715916639471,-500.0,0.00016438,2]
[327242299,1715916639484,-940.92,0.00016438,2]
[327242300,1715916639494,-500.0,0.00016438,2]
[327242301,1715916639504,-1207.54,0.00016438,2]
[327242302,1715916639515,-500.0,0.00016438,2]
[327242303,1715916639524,-500.0,0.00016438,2]
[327242304,1715916639535,-1097.74,0.00016438,2]
[327242305,1715916639546,-503.55520045,0.00016438,2]
[327242306,1715916639556,-500.0,0.00016438,2]
[327242307,1715916639568,-2044.12,0.00016438,2]
[327242309,1715916639797,-151.0,0.00016438,2]
[327242310,1715916639807,-541.79177225,0.00016438,2]
[327242311,1715916639817,-568.38,0.00016438,2]
[327242312,1715916639827,-2298.59,0.00016438,2]
[327242313,1715916639837,-706.9,0.00016438,4]
[327242314,1715916639847,-500.0,0.00016438,2]
[327242315,1715916639857,-151.0,0.00016438,2]
[327242316,1715916639868,-151.0,0.00016438,2]
[327242317,1715916639878,-151.0,0.00016438,2]
[327242318,1715916639888,-151.0,0.00016438,2]
[327242319,1715916639899,-151.0,0.00016438,2]
[327242320,1715916639910,-3574.76677657,0.00016438,2]
[327242330,1715916640970,-749.89884007,0.00016407,2]
[327242331,1715916640980,-18919.18322343,0.00016438,2]
[327242332,1715916640989,-500.0,0.00016438,2]
[327242333,1715916640999,-500.0,0.00016438,2]
[327242334,1715916641008,-500.0,0.00016438,2]
[327242335,1715916641017,-500.0,0.00016438,2]
[327242336,1715916641026,-500.0,0.00016438,2]
[327242337,1715916641036,-4958.05,0.00016438,2]
[327242338,1715916641045,-3380.34,0.00016438,2]
[327242339,1715916641055,-288.18427928,0.00016438,2]
[327242340,1715916641064,-500.0,0.00016438,2]
[327242341,1715916641074,-500.0,0.00016438,2]
[327242342,1715916641084,-1372.93,0.00016438,2]
[327242343,1715916641094,-500.0,0.00016438,2]
[327242344,1715916641103,-500.0,0.00016438,2]
[327242345,1715916641113,-2195.24,0.00016438,2]
[327242346,1715916641122,-500.0,0.00016438,2]
[327242347,1715916641131,-741.72,0.00016438,2]
[327242348,1715916641141,-2841.82,0.00016438,2]
[327242349,1715916641150,-151.0,0.00016438,2]
[327242350,1715916641159,-204.70539,0.00016438,2]
[327242351,1715916641169,-10336.69,0.00016438,2]
[327242352,1715916641181,-500.0,0.00016438,2]
[327242353,1715916641191,-512.93497742,0.00016438,2]
[327242354,1715916641201,-884.13,0.00016438,2]
[327242355,1715916641222,-1154.66,0.00016438,2]
[327242356,1715916641235,-500.0,0.00016438,2]
[327242357,1715916641245,-506.43,0.00016438,2]
[327242358,1715916641255,-500.0,0.00016438,2]
[327242359,1715916641265,-607.01,0.00016438,2]
[327242360,1715916641275,-500.0,0.00016438,2]
[327242361,1715916641285,-6306.66,0.00016438,2]
[327242362,1715916641295,-156.78511,0.00016438,2]
[327242363,1715916641305,-917.93,0.00016438,2]
[327242364,1715916641315,-500.0,0.00016438,2]
[327242365,1715916641324,-984.39,0.00016438,2]
[327242366,1715916641334,-1023.24,0.00016438,2]
[327242367,1715916641344,-169.154176,0.00016438,2]
[327242368,1715916641354,-169.154176,0.00016438,2]
[327242369,1715916641363,-169.154176,0.00016438,2]
[327242370,1715916641373,-169.154176,0.00016438,2]
[327242371,1715916641383,-169.154176,0.00016438,2]
[327242372,1715916641392,-500.0,0.00016438,2]
[327242373,1715916641402,-169.154176,0.00016438,2]
[327242374,1715916641412,-169.154176,0.00016438,2]
[327242375,1715916641421,-169.154176,0.00016438,2]
[327242376,1715916641433,-169.154176,0.00016438,2]
[327242377,1715916641443,-169.154176,0.00016438,2]
[327242378,1715916641453,-169.154176,0.00016438,2]
[327242379,1715916641463,-169.154176,0.00016438,2]
[327242380,1715916641474,-169.154176,0.00016438,2]
[327242381,1715916641484,-500.0,0.00016438,2]
[327242382,1715916641494,-169.154176,0.00016438,2]
[327242383,1715916641505,-169.154176,0.00016438,2]
[327242384,1715916641514,-169.154176,0.00016438,2]
[327242385,1715916641524,-169.154176,0.00016438,2]
[327242386,1715916641534,-169.154176,0.00016438,2]
[327242387,1715916641544,-169.154176,0.00016438,2]
[327242388,1715916641554,-169.154179,0.00016438,2]
[327242389,1715916641569,-181.685254,0.00016438,2]
[327242390,1715916641579,-181.685254,0.00016438,2]
[327242391,1715916641589,-181.685254,0.00016438,2]
[327242392,1715916641599,-181.685254,0.00016438,2]
[327242393,1715916641611,-181.685254,0.00016438,2]
[327242394,1715916641620,-500.0,0.00016438,2]
[327242395,1715916641630,-181.685254,0.00016438,2]
[327242396,1715916641641,-181.685254,0.00016438,2]
[327242397,1715916641651,-181.685254,0.00016438,2]
[327242398,1715916641660,-181.685254,0.00016438,2]
[327242399,1715916641670,-181.685254,0.00016438,2]
[327242400,1715916641681,-181.685254,0.00016438,2]
[327242401,1715916641691,-181.685254,0.00016438,2]
[327242402,1715916641700,-181.685254,0.00016438,2]
[327242403,1715916641709,-181.685254,0.00016438,2]
[327242404,1715916641718,-181.685254,0.00016438,2]
[327242405,1715916641728,-181.685254,0.00016438,2]
[327242406,1715916641738,-181.685254,0.00016438,2]
[327242407,1715916641748,-181.685254,0.00016438,2]
[327242408,1715916641757,-181.685254,0.00016438,2]
[327242409,1715916641767,-992.14,0.00016438,2]
[327242410,1715916641776,-181.685261,0.00016438,2]
[327242411,1715916641786,-500.0,0.00016438,2]
[327242412,1715916641796,-501.28986538,0.00016438,2]
[327242413,1715916641807,-1426.75,0.00016438,2]
[327242414,1715916641817,-516.04,0.00016438,2]
[327242415,1715916641827,-500.0,0.00016438,2]
[327242416,1715916641836,-653.83,0.00016438,2]
[327242417,1715916641852,-758.72,0.00016438,2]
[327242418,1715916641867,-151.0,0.00016438,2]
[327242419,1715916641882,-151.0,0.00016438,2]
[327242420,1715916641895,-151.0,0.00016438,2]
[327242421,1715916641908,-151.0,0.00016438,2]
[327242422,1715916641921,-151.0,0.00016438,2]
[327242423,1715916641934,-151.0,0.00016438,2]
[327242424,1715916641945,-151.0,0.00016438,2]
[327242425,1715916641956,-151.0,0.00016438,2]
[327242426,1715916641969,-151.0,0.00016438,2]
[327242427,1715916641981,-151.0,0.00016438,2]
[327242428,1715916641993,-151.0,0.00016438,2]
[327242429,1715916642005,-151.0,0.00016438,2]
[327242430,1715916642017,-151.0,0.00016438,2]
[327242431,1715916642029,-500.0,0.00016438,2]
[327242432,1715916642041,-151.0,0.00016438,2]
[327242433,1715916642053,-151.0,0.00016438,2]
[327242434,1715916642065,-160.792244,0.00016438,2]
[327242435,1715916642077,-226.967,0.00016479,2]
[327242436,1715916642090,-244.929,0.00016479,2]
[327242437,1715916642104,-153.156,0.00016479,2]
[327242438,1715916642116,-274.0226886,0.000165,2]
[327242439,1715916642129,-645.6,0.00016584,2]
[327242440,1715916642141,-586.93033502,0.00016612,2]
[327242441,1715916642152,-628.68760976,0.0001662,2]
[327242442,1715916642164,-419.19600137,0.00016698,2]
[327242443,1715916642176,-1716.72807354,0.00016698,2]
[327242444,1715916642189,-159.48065749,0.00016698,2]
[327242445,1715916642201,-500.0,0.00016698,2]
[327242446,1715916642214,-20232.47978653,0.00016699,2]
[327242447,1715916642225,-500.0,0.00016699,2]
[327242448,1715916642237,-500.0,0.00016699,2]
[327242449,1715916642248,-500.0,0.00016699,2]
[327242450,1715916642259,-3288.12604685,0.000167,3]
[327242451,1715916642270,-22834.67027008,0.000167,2]
[327242468,1715916643005,181.4,0.00014926,2]
[327242477,1715916643424,-151.0,0.00016438,2]
[327242478,1715916643438,-151.0,0.00016438,2]
[327242479,1715916643450,-151.0,0.00016438,2]
[327242480,1715916643461,-500.0,0.00016438,2]
[327242481,1715916643473,-224.669198,0.00016438,2]
[327242482,1715916643484,-749.89884007,0.00016475,2]
[327242483,1715916643494,-4614.90996193,0.000167,2]
[327242484,1715916643792,-749.89884007,0.00016544,2]
[327242485,1715916643803,-4178.34370782,0.000167,2]
[327242486,1715916643817,-1698.88818595,0.000167,2]
[327242487,1715916643831,-2428.06465339,0.000167,2]
[327242488,1715916643844,-2369.92097165,0.000167,2]
[327242489,1715916643857,-350.999985,0.000167,2]
[327242534,1715916646236,-181.4,0.00015115,2]
[327242535,1715916646247,-149.60421078,0.00015305,2]
[327242536,1715916646263,-31.79578922,0.00015305,2]
[327242537,1715916646275,-181.4,0.00015495,2]
[327242538,1715916646286,-749.89884007,0.00016612,2]
[327242539,1715916646298,-66744.80773408,0.000167,2]
[327242540,1715916646309,-4733.51684206,0.000167,2]
[327242542,1715916646323,-1515.34074918,0.000167,2]
[327242544,1715916646334,-513.01214525,0.00016711,2]
[327242546,1715916646345,-500.0,0.00016711,2]
[327242548,1715916646359,-500.0,0.00016711,2]
[327242550,1715916646370,-500.0,0.00016711,2]
[327242553,1715916646382,-500.0,0.00016712,2]
[327242555,1715916646393,-616.04,0.00016712,2]
[327242556,1715916646404,-500.0,0.00016712,2]
[327242557,1715916646416,-550.37,0.00016712,2]
[327242558,1715916646427,-500.0,0.00016712,2]
[327242559,1715916646440,-500.0,0.00016712,2]
[327242562,1715916646451,-500.0,0.00016712,2]
[327242564,1715916646462,-500.0,0.00016712,2]
[327242566,1715916646473,-500.0,0.00016712,2]
[327242568,1715916646484,-500.0,0.00016712,2]
[327242570,1715916646495,-517.71,0.00016712,2]
[327242572,1715916646506,-500.0,0.00016712,2]
[327242574,1715916646517,-500.0,0.00016712,2]
[327242576,1715916646527,-500.0,0.00016712,2]
[327242579,1715916646538,-341.85065376,0.00016712,2]
[327242624,1715916726038,1148.90229176,0.00015,2]
[327242633,1715917650127,-285.81696997,0.00016338,2]
[327242634,1715917650146,-195.05407017,0.00016436,2]
[327242635,1715917650165,-98.22469579,0.00016436,2]
[327242679,1715917833019,-59.54856845,0.00016436,2]
[327242681,1715917833028,-515.20748584,0.00016437,2]
[327242683,1715917833042,-298.39145201,0.00016438,2]
[327242685,1715917833051,-500.0,0.00016438,2]
[327242687,1715917833061,-272.71220208,0.00016438,2]
[327242689,1715917833070,-500.0,0.00016438,2]
[327242691,1715917833079,-151.0,0.00016438,2]
[327242693,1715917833089,-500.0,0.00016438,2]
[327242695,1715917833097,-500.0,0.00016438,2]
[327242697,1715917833107,-500.0,0.00016438,2]
[327242699,1715917833116,-500.0,0.00016438,2]
[327242700,1715917833125,-500.0,0.00016438,2]
[327242703,1715917833134,-500.0,0.00016438,2]
[327242704,1715917833143,-500.0,0.00016438,2]
[327242707,1715917833152,-500.0,0.00016438,2]
[327242709,1715917833162,-500.0,0.00016438,2]
[327242710,1715917833173,-473.50094784,0.00016438,2]
[327243184,1715917843134,-145.60905216,0.00016438,2]
[327243186,1715917843144,-500.0,0.00016438,2]
[327243188,1715917843153,-677.45,0.00016438,4]
[327243190,1715917843162,-500.0,0.00016438,2]
[327243192,1715917843171,-500.0,0.00016438,2]
[327243194,1715917843182,-1168.56,0.00016438,2]
[327243196,1715917843191,-500.0,0.00016438,2]
[327243198,1715917843200,-504.0462601,0.00016438,2]
[327243200,1715917843209,-512.84,0.00016438,2]
[327243201,1715917843218,-500.0,0.00016438,2]
[327243202,1715917843227,-1228.92,0.00016438,2]
[327243203,1715917843237,-830.34,0.00016438,2]
[327243204,1715917843247,-510.08,0.00016438,2]
[327243205,1715917843256,-565.02,0.00016438,2]
[327243206,1715917843265,-500.0,0.00016438,2]
[327243207,1715917843274,-500.0,0.00016438,2]
[327243208,1715917843284,-500.0,0.00016438,2]
[327243209,1715917843293,-790.3,0.00016438,2]
[327243210,1715917843303,-1212.06,0.00016438,2]
[327243211,1715917843312,-500.0,0.00016438,2]
[327243212,1715917843321,-666.77,0.00016438,2]
[327243213,1715917843330,-500.0,0.00016438,2]
[327243214,1715917843339,-500.0,0.00016438,2]
[327243215,1715917843349,-163.04976,0.00016438,2]
[327243216,1715917843358,-500.0,0.00016438,2]
[327243217,1715917843368,-500.0,0.00016438,2]
[327243218,1715917843377,-501.51010876,0.00016438,2]
[327243219,1715917843386,-500.0,0.00016438,2]
[327243220,1715917843395,-500.0,0.00016438,2]
[327243221,1715917843404,-500.0,0.00016438,2]
[327243222,1715917843413,-167.670311,0.00016438,2]
[327243223,1715917843424,-193.038858,0.00016438,2]
[327243224,1715917843433,-151.0,0.00016438,2]
[327243225,1715917843443,-500.0,0.00016438,2]
[327243226,1715917843452,-500.0,0.00016438,2]
[327243227,1715917843461,-151.0,0.00016438,2]
[327243228,1715917843470,-867.28,0.00016438,2]
[327243229,1715917843479,-500.0,0.00016438,2]
[327243230,1715917843488,-1022.26,0.00016438,2]
[327243231,1715917843497,-504.51,0.00016438,2]
[327243232,1715917843506,-500.0,0.00016438,2]
[327243233,1715917843516,-1157.23,0.00016438,2]
[327243234,1715917843526,-564.71,0.00016438,2]
[327243235,1715917843535,-3239.49,0.00016438,2]
[327243236,1715917843544,-500.0,0.00016438,2]
[327243237,1715917843554,-1052.0,0.00016438,2]
[327243238,1715917843563,-500.0,0.00016438,2]
[327243239,1715917843572,-500.0,0.00016438,2]
[327243240,1715917843582,-500.0,0.00016438,2]
[327243241,1715917843591,-500.0,0.00016438,2]
[327243242,1715917843600,-1958.95,0.00016438,2]
[327243243,1715917843609,-1882.69439574,0.00016438,2]
[327243252,1715917846056,-396.84560426,0.00016438,2]
[327243254,1715917846065,-500.0,0.00016438,2]
[327243256,1715917846074,-500.0,0.00016438,2]
[327243258,1715917846083,-500.0,0.00016438,2]
[327243259,1715917846094,-22318.36,0.00016438,2]
[327243260,1715917846102,-564.20686777,0.00016438,2]
[327243261,1715917846111,-544.7,0.00016438,2]
[327243262,1715917846120,-5743.07,0.00016438,2]